bitfinex/quotes_SOLUSD_20250622
["timestamp","ask_amount","ask_price","bid_price","bid_amount"]
[1750602959209,39.07570547,128.32,128.28,39.07570547]
[1750602959413,39.07570547,128.3,128.25,26.0]
[1750602959708,39.07570547,128.3,128.26,39.07570547]
[1750602960046,39.07570547,128.28,128.23,26.0]
[1750602960417,81.41570547,128.29,128.24,39.07570547]
[1750602960720,42.34,128.29,128.26,39.07570547]
[1750602961034,65.07570547,128.31,128.26,39.07570547]
[1750602961239,7.79252745,128.33,128.28,39.07570547]
[1750602961421,36.64591444,128.33,128.26,39.07570547]
[1750602961755,36.64591444,128.33,128.18,19.50243785]
[1750602961756,39.07570547,128.28,128.18,19.50243785]
[1750602962044,39.07570547,128.28,128.23,39.07570547]
[1750602962241,45.92320179,128.33,128.26,39.07570547]
[1750602962565,8.2247,128.34,128.3,39.07570547]
[1750602962566,50.0918555,128.34,128.3,39.07570547]
[1750602962777,39.07570547,128.36,128.31,39.07570547]
[1750602962951,39.07570547,128.36,128.32,39.07570547]
[1750602963150,39.07570547,128.35,128.31,39.07570547]
[1750602963399,7.79078329,128.36,128.31,39.07570547]
[1750602963682,46.86648876,128.36,128.28,33.79526341]
[1750602963846,7.79078329,128.36,128.32,39.07570547]
[1750602964276,7.79078329,128.36,128.29,18.64964886]
[1750602964444,7.79078329,128.36,128.32,39.07570547]
[1750602965152,50.07016793,128.37,128.33,39.07570547]
[1750602965352,50.07016793,128.37,128.34,39.07570547]
[1750602965561,15.02,128.38,128.35,39.07570547]
[1750602965766,8.98192332,128.41,128.35,39.07570547]
[1750602965975,39.07570547,128.4,128.35,39.07570547]
[1750602966183,51.22192332,128.41,128.35,39.07570547]
[1750602966356,7.78816199,128.4,128.37,39.07570547]
[1750602966556,16.76965484,128.41,128.38,39.07570547]
[1750602966771,8.98192332,128.41,128.38,39.07570547]
[1750602967083,46.86265454,128.42,128.38,39.07570547]
[1750602967369,46.86221021,128.43,128.38,39.07570547]
[1750602967584,65.00524675,128.45,128.4,39.07570547]
[1750602967743,39.07570547,128.41,128.28,128.77455896]
[1750602967947,18.64964886,128.41,128.29,18.64964886]
[1750602968149,39.07570547,128.34,128.3,39.07570547]
[1750602968396,42.2,128.4,128.33,39.07570547]
[1750602968673,70.94557187,128.49,128.38,39.07570547]
[1750602968871,39.07570547,128.45,128.4,39.07570547]
[1750602969055,42.18,128.46,128.4,39.07570547]
[1750602969248,39.07570547,128.41,128.32,7.79301745]
[1750602969449,39.07570547,128.41,128.33,44.64964886]
[1750602969664,39.07570547,128.41,128.36,39.07570547]
[1750602969868,42.18,128.42,128.38,39.07570547]
[1750602970174,42.18,128.42,128.39,39.07570547]
[1750602970359,81.25570547,128.42,128.38,39.07570547]
[1750602970680,39.07570547,128.4,128.36,39.07570547]
[1750602971181,39.07570547,128.41,128.36,46.8660962]
[1750602971377,81.25570547,128.42,128.38,39.07570547]
[1750602971570,39.07570547,128.41,128.36,7.79039073]
[1750602971861,39.07570547,128.39,128.35,39.07570547]
[1750602972172,65.07570547,128.43,128.38,39.07570547]
[1750602972550,39.07570547,128.42,128.38,39.07570547]
[1750602973054,39.07570547,128.42,128.37,39.07570547]
[1750602973673,39.07570547,128.39,128.34,65.07570547]
[1750602973878,110.97764031,128.43,128.3,18.64964886]
[1750602973879,39.07570547,128.38,128.32,7.79282372]
[1750602974058,39.07570547,128.36,128.32,39.07570547]
[1750602974573,39.07570547,128.36,128.31,46.86918808]
[1750602974957,39.07570547,128.36,128.32,39.07570547]
[1750602975259,39.07570547,128.36,128.31,39.07570547]
[1750602975654,39.07570547,128.36,128.32,39.07570547]
[1750602975861,39.07570547,128.38,128.31,26.0]
[1750602976055,39.07570547,128.39,128.34,39.07570547]
[1750602976264,42.08,128.4,128.36,39.07570547]
[1750602976458,39.07570547,128.41,128.37,46.86557584]
[1750602976677,39.07570547,128.41,128.36,46.8661286]
[1750602976864,39.07570547,128.4,128.35,46.86674783]
[1750602977173,39.07570547,128.38,128.34,39.07570547]
[1750602977478,39.07570547,128.39,128.34,39.07570547]
[1750602977676,39.07570547,128.36,128.31,39.07570547]
[1750602977976,60.66964886,128.38,128.29,7.79483981]
[1750602978179,39.07570547,128.35,128.31,39.07570547]
[1750602978348,39.07570547,128.35,128.3,65.07570547]
[1750602978550,46.86742829,128.35,128.3,39.07570547]
[1750602979091,39.07570547,128.36,128.32,39.07570547]
[1750602979295,39.07570547,128.36,128.31,39.07570547]
[1750602980184,7.79019737,128.37,128.33,39.07570547]
[1750602980483,88.88522857,128.38,128.33,39.07570547]
[1750602980652,88.88522857,128.38,128.29,26.44448867]
[1750602980653,42.02,128.38,128.35,39.07570547]
[1750602980854,41.96,128.43,128.37,39.07570547]
[1750602981054,41.96,128.43,128.39,39.07570547]
[1750602981252,81.03570547,128.43,128.39,39.07570547]
[1750602981465,39.07570547,128.42,128.35,26.0]
[1750602981678,81.03570547,128.43,128.35,26.0]
[1750602981957,41.96,128.43,128.37,39.07570547]
[1750602982174,39.07570547,128.38,128.34,39.07570547]
[1750602982374,39.07570547,128.36,128.32,39.07570547]
[1750602982680,7.78998208,128.37,128.3,7.79416317]
[1750602982980,7.78998208,128.37,128.31,39.07570547]
[1750602983179,39.07570547,128.35,128.28,26.44489552]
[1750602983368,39.07570547,128.35,128.3,39.07570547]
[1750602983770,39.07570547,128.36,128.31,39.07570547]
[1750602984374,33.78998208,128.37,128.33,39.07570547]
[1750602984588,49.72955305,128.38,128.34,39.07570547]
[1750602984879,39.07570547,128.37,128.33,39.07570547]
[1750602985381,39.07570547,128.37,128.32,39.07570547]
[1750602985569,39.07570547,128.37,128.33,39.07570547]
[1750602985766,7.79023706,128.37,128.33,39.07570547]
[1750602986281,46.86594253,128.37,128.32,39.07570547]
[1750602986479,39.07570547,128.34,128.27,6.5535]
[1750602986680,39.07570547,128.35,128.3,39.07570547]
[1750602986872,39.07570547,128.35,128.3,128.87570547]
[1750602987372,7.79023706,128.37,128.3,128.87570547]
[1750602987682,39.07570547,128.35,128.3,128.87570547]
[1750602987898,46.86732688,128.35,128.29,7.79457303]
[1750602988194,39.07570547,128.34,128.3,39.07570547]
[1750602988488,46.86732688,128.35,128.3,128.87570547]
[1750602988690,39.07570547,128.34,128.3,89.8]
[1750602988860,39.07570547,128.31,128.26,89.8]
[1750602989060,26.0,128.32,128.26,89.8]
[1750602989287,39.07570547,128.29,128.26,89.8]
[1750602990075,39.07570547,128.3,128.26,89.8]
[1750602990867,65.07570547,128.32,128.27,39.07570547]
[1750602991061,65.07570547,128.32,128.28,39.07570547]
[1750602991264,19.47781734,128.36,128.3,39.07570547]
[1750602991265,27.6133,128.35,128.3,39.07570547]
[1750602991589,39.07570547,128.34,128.29,39.07570547]
[1750602991763,39.07570547,128.3,128.18,145.31843513]
[1750602991964,39.07570547,128.29,128.25,39.07570547]
[1750602992278,39.07570547,128.28,128.24,39.07570547]
[1750602992474,39.07570547,128.29,128.24,39.07570547]
[1750602993075,41.78,128.31,128.19,117.10322177]
[1750602993076,39.07570547,128.3,128.25,65.07570547]
[1750602993689,39.07570547,128.3,128.23,26.0]
[1750602993906,39.07570547,128.3,128.25,46.8727929]
[1750602994087,80.81570547,128.3,128.26,39.07570547]
[1750602994598,41.74,128.3,128.26,39.07570547]
[1750602994803,39.07570547,128.34,128.29,39.07570547]
[1750602995007,5.7674862,128.34,128.31,39.07570547]
[1750602995221,41.72,128.35,128.26,89.8]
[1750602995222,86.56280495,128.35,128.26,89.8]
[1750602995513,44.84280495,128.34,128.3,39.07570547]
[1750602995877,13.55916342,128.34,128.3,39.07570547]
[1750602996219,80.79570547,128.35,128.31,39.07570547]
[1750602996791,41.72,128.35,128.31,39.07570547]
[1750602996981,41.72,128.35,128.32,39.07570547]
[1750602997289,39.07570547,128.37,128.31,26.0]
[1750602997480,5.76766952,128.38,128.34,39.07570547]
[1750602997678,5.76766952,128.38,128.36,39.07570547]
[1750602997917,86.50379921,128.41,128.36,46.86579505]
[1750602998214,7.78718199,128.42,128.38,39.07570547]
[1750602998215,5.76809374,128.4,128.38,39.07570547]
[1750602998505,39.07570547,128.42,128.36,7.79008958]
[1750602998506,5.76951116,128.42,128.39,39.07570547]
[1750602998717,8.60757187,128.45,128.41,39.07570547]
[1750602998718,46.35001663,128.45,128.41,39.07570547]
[1750602998874,5.76951116,128.45,128.41,39.07570547]
[1750602999508,44.84521663,128.45,128.41,39.07570547]
[1750602999676,41.9605517,128.44,128.37,29.841135]
[1750602999876,39.07570547,128.42,128.38,39.07570547]
[1750603000607,7.78676496,128.43,128.39,39.07570547]
[1750603000814,49.74570799,128.44,128.39,39.07570547]
[1750603000991,2.88412555,128.43,128.41,39.07570547]
[1750603001323,8.65363671,128.45,128.42,39.07570547]
[1750603001530,39.07570547,128.44,128.41,89.8]
[1750603001686,39.07570547,128.42,128.41,89.8]
[1750603002007,60.60947988,128.42,128.37,89.8]
[1750603002211,2.88412555,128.41,128.37,89.8]
[1750603002387,41.95983102,128.41,128.37,89.8]
[1750603002591,80.67570547,128.43,128.37,97.58986174]
[1750603002779,2.88485236,128.42,128.38,39.07570547]
[1750603002984,2.88485236,128.42,128.39,39.07570547]
[1750603003407,39.07570547,128.41,128.37,89.8]
[1750603003607,41.96222489,128.4,128.35,7.79105398]
[1750603003790,39.07570547,128.38,128.31,3.94086569]
[1750603003996,2.8857111,128.39,128.31,39.07570547]
[1750603003997,39.07570547,128.35,128.31,39.07570547]
[1750603004418,7.79073204,128.36,128.3,39.07570547]
[1750603004638,41.96132262,128.37,128.33,39.07570547]
[1750603004792,41.96132262,128.36,128.29,7.79483981]
[1750603004985,41.96052004,128.35,128.31,39.07570547]
[1750603005187,39.07570547,128.35,128.31,39.07570547]
[1750603005396,39.07570547,128.35,128.3,39.07570547]
[1750603005795,39.07570547,128.35,128.31,39.07570547]
[1750603006198,39.07570547,128.36,128.32,39.07570547]
[1750603006597,39.07570547,128.36,128.31,7.79349144]
[1750603006901,41.96167811,128.35,128.31,39.07570547]
[1750603007098,39.07570547,128.35,128.25,128.87570547]
[1750603007310,41.9613794,128.34,128.29,39.07570547]
[1750603007489,80.55570547,128.35,128.29,26.0]
[1750603007716,80.55570547,128.35,128.3,39.07570547]
[1750603008033,46.86770073,128.34,128.3,39.07570547]
[1750603008235,46.86770073,128.34,128.25,39.07570547]
[1750603008424,39.07570547,128.32,128.27,39.07570547]
[1750603008626,39.07570547,128.3,128.25,39.07570547]
[1750603008829,39.07570547,128.29,128.25,39.07570547]
[1750603009017,39.07570547,128.3,128.25,39.07570547]
[1750603009414,39.07570547,128.29,128.25,39.07570547]
[1750603009608,41.46,128.31,128.27,39.07570547]
[1750603009609,80.53570547,128.31,128.27,39.07570547]
[1750603010255,41.44,128.34,128.3,39.07570547]
[1750603010562,39.07570547,128.35,128.31,39.07570547]
[1750603010842,39.07570547,128.35,128.27,45.93577888]
[1750603010843,39.07570547,128.34,128.27,26.44564089]
[1750603011044,39.07570547,128.33,128.29,39.07570547]
[1750603011222,39.07570547,128.31,128.26,39.07570547]
[1750603011539,39.07570547,128.31,128.23,27.29321093]
[1750603011759,39.07570547,128.3,128.26,39.07570547]
[1750603012056,18.64964886,128.31,128.26,39.07570547]
[1750603012229,46.86996676,128.3,128.26,39.07570547]
[1750603012418,46.86996676,128.3,128.25,39.07570547]
[1750603012618,39.07570547,128.29,128.23,33.79848709]
[1750603012834,39.07570547,128.29,128.25,39.07570547]
[1750603013031,46.8694743,128.31,128.23,33.79848709]
[1750603013345,46.8694743,128.31,128.26,39.07570547]
[1750603014051,80.49570547,128.33,128.29,39.07570547]
[1750603014240,53.67570547,128.37,128.32,39.07570547]
[1750603014544,2.8821085,128.36,128.33,39.07570547]
[1750603014728,2.8821085,128.36,128.31,7.79362481]
[1750603014729,39.07570547,128.36,128.31,7.79362481]
[1750603014932,41.36,128.35,128.28,26.0]
[1750603015126,39.07570547,128.34,128.28,26.0]
[1750603015327,39.07570547,128.34,128.3,39.07570547]
[1750603015542,80.43570547,128.35,128.3,39.07570547]
[1750603015721,39.07570547,128.34,128.25,1.5322]
[1750603015924,39.07570547,128.33,128.28,46.87079963]
[1750603016138,39.07570547,128.31,128.23,6.1313]
[1750603016339,39.07570547,128.3,128.25,39.07570547]
[1750603016533,41.34,128.31,128.24,26.0]
[1750603016736,39.07570547,128.3,128.25,39.07570547]
[1750603017124,39.07570547,128.3,128.26,39.07570547]
[1750603017619,41.95715372,128.3,128.25,39.07570547]
[1750603017822,41.95715372,128.3,128.24,26.0]
[1750603018050,41.95715372,128.3,128.26,39.07570547]
[1750603018219,39.07570547,128.31,128.27,39.07570547]
[1750603018850,80.35570547,128.33,128.28,39.07570547]
[1750603019039,39.07570547,128.32,128.26,7.79657237]
[1750603019245,2.88229855,128.31,128.26,7.79657237]
[1750603019445,41.95800402,128.31,128.27,39.07570547]
[1750603019664,39.07570547,128.31,128.27,39.07570547]
[1750603020146,44.84261686,128.32,128.27,46.87118631]
[1750603020345,7.79316511,128.32,128.26,26.0]
[1750603020651,2.88154393,128.32,128.27,39.07570547]
[1750603020826,41.28,128.33,128.3,39.07570547]
[1750603021022,39.07570547,128.35,128.31,39.07570547]
[1750603021250,39.07570547,128.32,128.28,39.07570547]
[1750603021450,39.07570547,128.31,128.28,89.8]
[1750603021660,39.07570547,128.33,128.29,39.07570547]
[1750603021835,39.07570547,128.31,128.28,89.8]
[1750603022155,41.24,128.32,128.29,39.07570547]
[1750603022454,19.47334074,128.39,128.31,39.07570547]
[1750603022684,2.87962887,128.36,128.35,39.07570547]
[1750603022975,53.67570547,128.38,128.34,39.07570547]
[1750603023195,39.07570547,128.35,128.31,89.8]
[1750603023479,41.22,128.36,128.3,39.07570547]
[1750603023642,39.07570547,128.35,128.31,39.07570547]
[1750603024469,39.07570547,128.33,128.28,46.87091542]
[1750603024665,39.07570547,128.32,128.28,39.07570547]
[1750603024876,39.07570547,128.34,128.29,39.07570547]
[1750603025172,26.75408955,128.33,128.29,26.75408955]
[1750603025367,26.75408955,128.33,128.27,33.79582394]
[1750603025368,67.91408955,128.35,128.31,26.75408955]
[1750603025571,2.8783243,128.34,128.3,26.75408955]
[1750603025776,29.63091365,128.34,128.29,26.75408955]
[1750603025947,41.16,128.35,128.28,89.8]
[1750603025948,26.75408955,128.33,128.28,89.8]
[1750603026152,26.75408955,128.33,128.29,26.75408955]
[1750603026367,26.75408955,128.33,128.29,7.79476828]
[1750603026565,26.75408955,128.33,128.28,7.79526811]
[1750603026771,26.75408955,128.33,128.29,26.75408955]
[1750603026971,26.75408955,128.34,128.28,7.79526811]
[1750603027187,26.75408955,128.34,128.29,26.75408955]
[1750603027393,26.75408955,128.33,128.29,26.75408955]
[1750603027601,26.0,128.37,128.32,26.75408955]
[1750603027897,20.35078878,128.38,128.35,26.75408955]
[1750603028074,2.87445438,128.37,128.35,26.75408955]
[1750603028379,17.47445438,128.38,128.35,34.54481558]
[1750603028771,14.6,128.38,128.35,34.54481558]
[1750603029187,26.75408955,128.4,128.36,26.75408955]
[1750603029571,67.85408955,128.41,128.37,26.75408955]
[1750603029781,67.83408955,128.42,128.38,26.75408955]
[1750603029982,2.87778639,128.41,128.38,26.75408955]
[1750603030182,2.87778639,128.41,128.39,26.75408955]
[1750603030373,70.71179035,128.44,128.37,26.0]
[1750603030587,29.63179035,128.43,128.39,26.75408955]
[1750603030787,26.75408955,128.43,128.39,26.75408955]
[1750603030999,2.87612969,128.42,128.39,26.75408955]
[1750603031374,2.87612969,128.43,128.4,26.75408955]
[1750603031813,26.75408955,128.44,128.4,26.75408955]
[1750603032023,14.18,128.45,128.42,26.75408955]
[1750603032181,75.57763555,128.48,128.41,26.0]
[1750603032380,2.87425421,128.47,128.41,33.78718331]
[1750603032700,26.75408955,128.46,128.41,60.54127286]
[1750603033506,26.75408955,128.46,128.42,34.54048884]
[1750603033675,26.75408955,128.47,128.42,34.54048884]
[1750603033878,26.75408955,128.48,128.42,7.78639929]
[1750603034083,37.22731862,128.51,128.46,26.75408955]
[1750603034283,2.87141336,128.5,128.46,26.75408955]
[1750603034684,35.63991862,128.51,128.47,26.75408955]
[1750603035081,35.63991862,128.51,128.42,45.90342083]
[1750603035387,39.02112401,128.5,128.45,7.78511586]
[1750603035711,8.88582907,128.51,128.49,39.02112401]
[1750603035924,8.88582907,128.51,128.47,26.0]
[1750603036092,8.88582907,128.51,128.43,27.25219963]
[1750603036093,8.88582907,128.51,128.46,26.0]
[1750603036405,39.02112401,128.5,128.45,39.02112401]
[1750603036591,39.02112401,128.49,128.45,39.02112401]
[1750603036912,39.02112401,128.5,128.45,39.02112401]
[1750603037084,57.62743848,128.51,128.46,39.02112401]
[1750603037284,8.88582907,128.51,128.5,39.02112401]
[1750603037484,8.88582907,128.51,128.5,46.80322517]
[1750603037895,87.71976255,128.56,128.5,39.02112401]
[1750603038105,39.02112401,128.55,128.51,39.02112401]
[1750603038717,39.02112401,128.55,128.5,39.02112401]
[1750603039218,40.9,128.55,128.5,39.02112401]
[1750603039407,39.02112401,128.51,128.46,39.02112401]
[1750603039607,39.02112401,128.49,128.44,39.02112401]
[1750603039918,39.02112401,128.5,128.45,39.02112401]
[1750603040511,46.80360905,128.5,128.45,39.02112401]
[1750603041327,48.66169716,128.51,128.46,39.02112401]
[1750603041507,40.88,128.51,128.47,39.02112401]
[1750603041900,87.68263236,128.51,128.44,33.78549829]
[1750603042106,114.31389621,128.51,128.42,39.02112401]
[1750603042326,39.02112401,128.48,128.44,39.02112401]
[1750603042608,76.21050835,128.51,128.45,39.02112401]
[1750603042609,39.02112401,128.49,128.45,39.02112401]
[1750603043207,39.02112401,128.49,128.44,39.02112401]
[1750603043409,39.02112401,128.49,128.45,39.02112401]
[1750603043597,46.80386359,128.49,128.45,39.02112401]
[1750603043799,39.02112401,128.49,128.44,39.02112401]
[1750603044210,76.210675,128.51,128.45,39.02112401]
[1750603044405,39.02112401,128.49,128.45,39.02112401]
[1750603044812,39.02112401,128.5,128.45,46.80617274]
[1750603045396,79.90112401,128.51,128.46,39.02112401]
[1750603045693,113.5615902,128.53,128.49,39.02112401]
[1750603045995,39.02112401,128.5,128.45,89.8]
[1750603046194,67.99117808,128.53,128.45,89.8]
[1750603046195,7.77725929,128.58,128.49,39.02112401]
[1750603046400,39.02112401,128.56,128.52,39.02112401]
[1750603046607,48.51725929,128.58,128.52,39.02112401]
[1750603046808,39.02112401,128.56,128.51,39.02112401]
[1750603047004,39.02112401,128.55,128.5,39.02112401]
[1750603047199,39.02112401,128.54,128.48,26.0]
[1750603047401,79.76112401,128.54,128.49,39.02112401]
[1750603047599,79.76112401,128.54,128.48,26.0]
[1750603047894,6.6282,128.59,128.53,39.02112401]
[1750603048100,18.3549513,128.62,128.58,39.02112401]
[1750603048424,18.3549513,128.62,128.59,39.02112401]
[1750603048425,18.355028,128.62,128.59,39.02112401]
[1750603048795,8.93271417,128.62,128.6,39.02112401]
[1750603049011,8.93271417,128.62,128.61,39.02112401]
[1750603049207,47.95383818,128.62,128.57,39.02112401]
[1750603049516,47.95383818,128.62,128.58,39.02112401]
[1750603049821,8.93271417,128.62,128.57,39.02112401]
[1750603050119,47.95383818,128.62,128.58,39.02112401]
[1750603050323,55.72867879,128.62,128.58,39.02112401]
[1750603050830,8.93271417,128.62,128.55,27.22660333]
[1750603051004,8.93271417,128.62,128.6,39.02112401]
[1750603051202,47.95383818,128.62,128.58,39.02112401]
[1750603051529,16.70766304,128.62,128.58,39.02112401]
[1750603051822,88.59383818,128.62,128.58,39.02112401]
[1750603052028,96.36873764,128.62,128.58,39.02112401]
[1750603052230,46.79777849,128.59,128.51,19.45231552]
[1750603052416,40.62,128.59,128.56,39.02112401]
[1750603052724,40.62,128.59,128.57,39.02112401]
[1750603053294,49.53271417,128.62,128.58,39.02112401]
[1750603053525,96.32878746,128.62,128.55,26.0]
[1750603053720,96.32878746,128.62,128.58,39.02112401]
[1750603054424,96.32878746,128.62,128.55,26.0]
[1750603054425,39.02112401,128.61,128.57,39.02112401]
[1750603054799,57.30766345,128.62,128.56,39.02112401]
[1750603055013,39.02112401,128.59,128.55,39.02112401]
[1750603055324,79.58112401,128.59,128.54,39.02112401]
[1750603055699,39.02112401,128.58,128.52,7.78068924]
[1750603055990,40.56,128.59,128.55,39.02112401]
[1750603056225,79.58112401,128.59,128.55,39.02112401]
[1750603056928,40.56,128.59,128.56,39.02112401]
[1750603058326,27.58236303,128.62,128.58,39.02112401]
[1750603058327,8.93271417,128.62,128.58,39.02112401]
[1750603058539,39.02112401,128.61,128.52,39.02112401]
[1750603058715,39.02112401,128.59,128.54,39.02112401]
[1750603059024,39.02112401,128.59,128.55,39.02112401]
[1750603059227,67.12863248,128.6,128.55,26.64863248]
[1750603059531,8.93271417,128.62,128.59,26.64863248]
[1750603059737,8.93271417,128.62,128.61,26.64863248]
[1750603059909,7.77385325,128.64,128.61,26.64863248]
[1750603060108,26.64863248,128.64,128.56,52.64863248]
[1750603060427,18.64964886,128.64,128.57,26.64863248]
[1750603060624,26.64863248,128.61,128.57,26.64863248]
[1750603060801,26.64863248,128.6,128.56,26.64863248]
[1750603061001,26.64863248,128.6,128.55,26.64863248]
[1750603061313,26.64863248,128.6,128.55,34.42763618]
[1750603061519,7.10277187,128.7,128.62,26.0]
[1750603061825,7.10277187,128.7,128.65,26.64863248]
[1750603061826,26.64863248,128.7,128.65,26.64863248]
[1750603062014,42.30728797,128.73,128.66,26.0]
[1750603062327,15.65865549,128.73,128.69,26.64863248]
[1750603062627,42.30728797,128.73,128.68,26.64863248]
[1750603062821,26.64863248,128.7,128.63,26.0]
[1750603063024,26.64863248,128.67,128.63,52.64863248]
[1750603063211,26.64863248,128.66,128.57,7.6073]
[1750603063518,26.64863248,128.64,128.59,26.64863248]
[1750603063904,26.64863248,128.6,128.56,26.64863248]
[1750603064110,26.64863248,128.59,128.52,7.78089013]
[1750603064422,26.64863248,128.61,128.56,26.64863248]
[1750603064620,26.64863248,128.61,128.57,26.64863248]
[1750603064821,66.36,128.62,128.57,26.64863248]
[1750603064822,93.00863248,128.62,128.57,26.64863248]
[1750603065025,26.64863248,128.61,128.57,26.64863248]
[1750603065220,26.64863248,128.61,128.53,26.0]
[1750603065427,26.64863248,128.61,128.56,26.64863248]
[1750603065621,26.42526605,128.61,128.57,26.64863248]
[1750603066117,66.36,128.62,128.59,26.64863248]
[1750603066436,7.77442323,128.63,128.6,26.64863248]
[1750603066812,7.77442323,128.63,128.59,26.64863248]
[1750603067124,7.77442323,128.63,128.62,26.0]
[1750603067691,80.8127872,128.65,128.62,26.0]
[1750603067850,40.4927872,128.65,128.61,64.9436872]
[1750603068025,48.26599787,128.65,128.61,26.0]
[1750603068347,38.9436872,128.63,128.61,26.0]
[1750603069313,47.40452851,128.65,128.61,26.0]
[1750603069314,38.9436872,128.64,128.61,26.0]
[1750603069517,66.91564673,128.65,128.61,26.0]
[1750603069843,48.26599787,128.65,128.61,26.0]
[1750603070035,9.32231067,128.65,128.61,26.0]
[1750603070239,51.11989634,128.65,128.61,26.0]
[1750603070440,48.26599787,128.65,128.61,26.0]
[1750603070624,53.97503562,128.65,128.61,26.0]
[1750603070944,48.26599787,128.65,128.63,26.0]
[1750603071137,53.98220635,128.65,128.63,26.0]
[1750603071526,40.3,128.66,128.62,26.0]
[1750603071757,40.3,128.66,128.64,38.9436872]
[1750603071758,40.22,128.66,128.64,38.9436872]
[1750603072126,79.1636872,128.66,128.63,26.0]
[1750603072955,79.1636872,128.66,128.62,38.9436872]
[1750603073136,40.22,128.66,128.62,38.9436872]
[1750603073340,45.9551612,128.66,128.62,38.9436872]
[1750603073546,40.22,128.66,128.62,38.9436872]
[1750603073754,40.22,128.66,128.62,46.71843916]
[1750603074053,5.74027024,128.68,128.64,38.9436872]
[1750603074357,41.81419224,128.68,128.63,38.9436872]
[1750603074648,41.81419224,128.67,128.62,38.9436872]
[1750603074850,2.87050504,128.66,128.62,38.9436872]
[1750603075058,38.9436872,128.65,128.6,64.9436872]
[1750603075231,40.14,128.64,128.6,64.9436872]
[1750603075429,45.88027024,128.64,128.6,64.9436872]
[1750603075647,40.14,128.64,128.61,38.9436872]
[1750603076025,45.88948543,128.64,128.6,72.71949699]
[1750603076227,45.88948543,128.64,128.6,64.9436872]
[1750603076443,53.66312104,128.64,128.59,7.77644418]
[1750603076644,2.87624663,128.63,128.6,38.9436872]
[1750603077365,47.56941926,128.63,128.54,89.8]
[1750603077665,2.87624663,128.62,128.59,38.9436872]
[1750603078060,2.87624663,128.62,128.58,38.9436872]
[1750603078429,2.87624663,128.62,128.6,38.9436872]
[1750603078746,8.62573206,128.63,128.59,38.9436872]
[1750603079548,8.62573206,128.63,128.57,33.77771036]
[1750603079859,2.87624663,128.63,128.6,46.7195506]
[1750603080366,2.88057483,128.63,128.6,46.7195506]
[1750603080579,8.63006026,128.63,128.6,46.7195506]
[1750603081034,2.88057483,128.63,128.61,38.9436872]
[1750603081239,38.9436872,128.66,128.6,7.7758634]
[1750603081240,2.88057483,128.65,128.62,38.9436872]
[1750603081443,2.88057483,128.65,128.6,7.7758634]
[1750603081656,38.9436872,128.63,128.58,7.77684893]
[1750603081964,40.02,128.63,128.58,7.77684893]
[1750603082139,40.02,128.63,128.61,38.9436872]
[1750603082344,40.02,128.63,128.6,38.9436872]
[1750603082752,5.76433217,128.64,128.61,38.9436872]
[1750603082959,2.88149758,128.65,128.61,26.0]
[1750603083158,16.41914254,128.65,128.58,128.7436872]
[1750603083462,41.82518478,128.64,128.59,38.9436872]
[1750603083660,5.76433217,128.65,128.61,38.9436872]
[1750603083847,2.88167395,128.65,128.63,38.9436872]
[1750603084045,41.82536115,128.67,128.59,18.64964886]
[1750603084348,38.9436872,128.63,128.57,26.0]
[1750603084549,38.9436872,128.63,128.59,38.9436872]
[1750603084550,2.88167395,128.62,128.59,38.9436872]
[1750603084855,8.64989318,128.62,128.58,38.9436872]
[1750603085052,55.36883152,128.62,128.57,123.57781327]
[1750603085252,78.9236872,128.63,128.59,38.9436872]
[1750603085459,39.98,128.63,128.59,38.9436872]
[1750603085650,45.74904681,128.63,128.59,38.9436872]
[1750603086478,7.10277187,128.68,128.62,38.9436872]
[1750603086648,38.9436872,128.66,128.6,115.8]
[1750603086849,2.88497385,128.65,128.61,38.9436872]
[1750603087085,2.88497385,128.65,128.6,115.8]
[1750603087086,46.71818931,128.63,128.55,27.22666808]
[1750603087254,26.63546474,128.62,128.57,26.0]
[1750603087571,5.77356548,128.63,128.59,26.63546474]
[1750603087747,5.77356548,128.63,128.61,26.63546474]
[1750603087748,2.88576433,128.63,128.61,26.63546474]
[1750603087957,39.94,128.64,128.59,26.0]
[1750603088161,2.89072067,128.63,128.6,26.63546474]
[1750603088342,2.89072067,128.62,128.6,26.63546474]
[1750603088547,29.52618541,128.63,128.59,26.63546474]
[1750603088853,2.89072067,128.62,128.58,52.63546474]
[1750603089053,2.89072067,128.62,128.59,26.63546474]
[1750603089369,35.29975089,128.63,128.58,26.0]
[1750603089573,35.29975089,128.63,128.52,3.84464065]
[1750603089574,18.64964886,128.61,128.52,3.84464065]
[1750603089744,26.63546474,128.54,128.49,26.63546474]
[1750603089945,29.52618541,128.53,128.47,7.78391842]
[1750603090194,26.63546474,128.51,128.46,34.41992712]
[1750603090351,42.75780569,128.5,128.46,7.78446238]
[1750603090556,42.75780569,128.5,128.41,65.34372317]